bitfinex/quotes_BTCUSD_20221001
["timestamp","ask_amount","ask_price","bid_price","bid_amount"]
[1664617382788,0.00323366,19339.0,19338.0,0.51173144]
[1664617382965,0.00323366,19339.0,19338.0,0.64101044]
[1664617383416,0.05323366,19339.0,19338.0,0.64101044]
[1664617384839,0.00323366,19339.0,19338.0,0.64101044]
[1664617385299,0.00323366,19339.0,19338.0,0.90101044]
[1664617385502,0.05323366,19339.0,19338.0,0.90101044]
[1664617385863,0.05323366,19339.0,19338.0,1.45358008]
[1664617386268,0.05323366,19339.0,19338.0,0.94960128]
[1664617386459,0.05323366,19339.0,19338.0,1.32430108]
[1664617386808,0.00323366,19339.0,19338.0,1.32430108]
[1664617387361,0.05323366,19339.0,19338.0,1.32430108]
[1664617388033,0.05323366,19339.0,19338.0,1.07888028]
[1664617388680,0.05323366,19339.0,19338.0,1.81188608]
[1664617388681,0.00323366,19339.0,19338.0,1.81188608]
[1664617388933,0.00323366,19339.0,19338.0,1.45358008]
[1664617389604,0.05823366,19339.0,19338.0,1.45358008]
[1664617391052,0.00323366,19339.0,19338.0,1.45358008]
[1664617391496,0.05823366,19339.0,19338.0,1.45358008]
[1664617392370,0.05823366,19339.0,19338.0,1.27571024]
[1664617392602,0.00323366,19339.0,19338.0,1.27571024]
[1664617393523,0.05823366,19339.0,19338.0,1.27571024]
[1664617394011,0.05823366,19339.0,19338.0,0.90101044]
[1664617394241,0.05823366,19339.0,19338.0,0.77173144]
[1664617394630,0.00323366,19339.0,19338.0,0.77173144]
[1664617395462,0.05323366,19339.0,19338.0,0.77173144]
[1664617396516,0.05323366,19339.0,19338.0,0.90101044]
[1664617396746,0.00323366,19339.0,19338.0,0.90101044]
[1664617397492,0.05323366,19339.0,19338.0,0.90101044]
[1664617398739,0.00323366,19339.0,19338.0,0.90101044]
[1664617399372,0.05323366,19339.0,19338.0,0.90101044]
[1664617400057,0.05323366,19339.0,19338.0,1.44680087]
[1664617400266,0.05323366,19339.0,19338.0,1.80510687]
[1664617400615,0.00323366,19339.0,19338.0,1.44680087]
[1664617401494,0.05823366,19339.0,19338.0,1.44680087]
[1664617402613,0.00323366,19339.0,19338.0,1.07210107]
[1664617403071,0.36153966,19339.0,19338.0,0.90101044]
[1664617403282,0.00323366,19339.0,19338.0,0.90101044]
[1664617403502,0.05823366,19339.0,19338.0,0.90101044]
[1664617405055,0.00323366,19339.0,19338.0,0.90101044]
[1664617405571,0.05823366,19339.0,19338.0,0.90101044]
[1664617406719,0.00323366,19339.0,19338.0,0.77173144]
[1664617407392,0.00323366,19339.0,19338.0,0.26]
[1664617407393,0.26973563,19339.0,19338.0,0.26]
[1664617407656,0.70704163,19339.0,19338.0,0.26]
[1664617407883,0.96558563,19339.0,19338.0,0.26]
[1664617408106,1.78267463,19339.0,19338.0,0.26]
[1664617408400,1.48267463,19339.0,19338.0,0.26]
[1664617408811,1.40367463,19339.0,19338.0,0.26]
[1664617409249,1.04536863,19339.0,19338.0,0.26]
[1664617409579,1.48267463,19339.0,19338.0,0.26]
[1664617410602,1.12436863,19339.0,19338.0,0.26]
[1664617410837,1.40367463,19339.0,19338.0,0.26]
[1664617411498,1.48267463,19339.0,19338.0,0.26]
[1664617411993,1.12436863,19339.0,19338.0,0.26]
[1664617412225,1.48267463,19339.0,19338.0,0.26]
[1664617412887,1.40367463,19339.0,19338.0,0.26]
[1664617413497,1.48267463,19339.0,19338.0,0.26]
[1664617413786,0.93942566,19339.0,19338.0,0.26]
[1664617414018,0.58111966,19339.0,19338.0,0.26]
[1664617414662,0.93942566,19339.0,19338.0,0.26]
[1664617414884,0.50211966,19339.0,19338.0,0.26]
[1664617415093,0.44590966,19339.0,19338.0,0.26]
[1664617415558,0.50190966,19339.0,19338.0,0.26]
[1664617416475,0.50190966,19339.0,19338.0,0.6346998]
[1664617416696,0.50190966,19339.0,19338.0,0.26]
[1664617416906,0.44590966,19339.0,19338.0,0.26]
[1664617417582,0.50190966,19339.0,19338.0,0.26]
[1664617418780,0.44590966,19339.0,19338.0,0.26]
[1664617419654,0.49290966,19339.0,19338.0,0.26]
[1664617420310,0.23436566,19339.0,19338.0,0.26]
[1664617420768,0.18736566,19339.0,19338.0,0.26]
[1664617421654,0.23436566,19339.0,19338.0,0.26]
[1664617422766,0.18736566,19339.0,19338.0,0.26]
[1664617422989,0.05809366,19339.0,19338.0,0.26]
[1664617423663,0.10509366,19339.0,19338.0,0.26]
[1664617424621,0.05023366,19339.0,19338.0,0.26]
[1664617425342,0.00323366,19339.0,19338.0,0.26]
[1664617425554,0.40853966,19339.0,19338.0,0.26]
[1664617425777,0.05023366,19339.0,19338.0,0.26]
[1664617426912,0.00323366,19339.0,19338.0,0.26]
[1664617427524,0.08223366,19339.0,19338.0,0.26]
[1664617428382,0.08223366,19339.0,19338.0,0.6346998]
[1664617428558,0.08223366,19339.0,19338.0,0.26]
[1664617428786,0.00323366,19339.0,19338.0,0.26]
[1664617429478,0.36153966,19339.0,19338.0,0.26]
[1664617429623,0.05023366,19339.0,19338.0,0.26]
[1664617430706,0.36153966,19339.0,19338.0,0.26]
[1664617430929,0.00323366,19339.0,19338.0,0.26]
[1664617431659,0.08223366,19339.0,19338.0,0.26]
[1664617432083,0.44053966,19339.0,19338.0,0.26]
[1664617432308,0.08223366,19339.0,19338.0,0.26]
[1664617432777,0.00323366,19339.0,19338.0,0.26]
[1664617433686,0.05023366,19339.0,19338.0,0.26]
[1664617434837,0.00323366,19339.0,19338.0,0.26]
[1664617435750,0.05023366,19339.0,19338.0,0.26]
[1664617436839,0.00323366,19339.0,19338.0,0.26]
[1664617437688,0.08223366,19339.0,19338.0,0.26]
[1664617438465,0.44053966,19339.0,19338.0,0.26]
[1664617438686,0.08223366,19339.0,19338.0,0.26]
[1664617438907,0.11430366,19339.0,19338.0,0.26]
[1664617439656,0.19330366,19339.0,19338.0,0.26]
[1664617440205,0.55160966,19339.0,19338.0,0.26]
[1664617440416,0.19330366,19339.0,19338.0,0.26]
[1664617441339,0.11430366,19339.0,19338.0,0.26]
[1664617441774,0.19330366,19339.0,19338.0,0.26]
[1664617442912,0.00323366,19339.0,19338.0,0.26]
[1664617443813,0.08223366,19339.0,19338.0,0.26]
[1664617444862,0.44053966,19339.0,19338.0,0.26]
[1664617445069,0.08223366,19339.0,19338.0,0.26]
[1664617445472,0.05809366,19339.0,19338.0,0.26]
[1664617445836,0.13709366,19339.0,19338.0,0.26]
[1664617446990,0.00323366,19339.0,19338.0,0.26]
[1664617447697,0.08223366,19339.0,19338.0,0.26]
[1664617447923,0.08223366,19339.0,19338.0,0.6346998]
[1664617448137,0.08223366,19339.0,19338.0,0.33998751]
[1664617449048,0.00323366,19339.0,19338.0,0.33998751]
[1664617449264,0.00323366,19339.0,19338.0,0.71468731]
[1664617449484,0.00323366,19339.0,19338.0,0.33998751]
[1664617449714,0.08223366,19339.0,19338.0,0.33998751]
[1664617451047,0.00323366,19339.0,19338.0,1.07299331]
[1664617451279,0.00323366,19339.0,19338.0,0.71468731]
[1664617451725,0.05423366,19339.0,19338.0,0.71468731]
[1664617451952,0.05423366,19339.0,19338.0,0.33998751]
[1664617452166,0.05423366,19339.0,19338.0,0.26]
[1664617453043,0.00323366,19339.0,19338.0,0.26]
[1664617453702,0.05023366,19339.0,19338.0,0.26]
[1664617454028,0.05023366,19339.0,19338.0,0.6346998]
[1664617454256,0.05023366,19339.0,19338.0,0.26]
[1664617454478,0.05023366,19339.0,19338.0,0.77934411]
[1664617454700,0.05023366,19339.0,19338.0,0.53392331]
[1664617454849,0.00323366,19339.0,19338.0,0.90862311]
[1664617455282,0.00323366,19339.0,19338.0,0.77934411]
[1664617455734,0.05423366,19339.0,19338.0,0.77934411]
[1664617456533,0.05423366,19339.0,19338.0,0.90862311]
[1664617456933,0.00323366,19339.0,19338.0,0.90862311]
[1664617457932,0.05423366,19339.0,19338.0,0.90862311]
[1664617458587,0.05423366,19339.0,19338.0,1.16718111]
[1664617459092,0.00323366,19339.0,19338.0,1.52548711]
[1664617459542,0.00323366,19339.0,19338.0,1.16718111]
[1664617459766,0.05923366,19339.0,19338.0,1.16718111]
[1664617461107,0.00323366,19339.0,19338.0,1.16718111]
[1664617461761,0.05423366,19339.0,19338.0,1.16718111]
[1664617463678,0.00323366,19339.0,19338.0,1.16718111]
[1664617463900,0.05423366,19339.0,19338.0,1.16718111]
[1664617464890,0.00323366,19339.0,19338.0,1.16718111]
[1664617465639,0.00323366,19339.0,19338.0,1.52548711]
[1664617465868,0.05423366,19339.0,19338.0,1.52548711]
[1664617466202,0.05423366,19339.0,19338.0,1.16718111]
[1664617467059,0.00323366,19339.0,19338.0,1.16718111]
[1664617467695,0.05023366,19339.0,19338.0,1.16718111]
[1664617467952,0.05023366,19339.0,19338.0,1.52548711]
[1664617468973,0.00323366,19339.0,19338.0,1.52548711]
[1664617469665,0.05423366,19339.0,19338.0,1.16718111]
[1664617470093,0.05423366,19339.0,19338.0,1.52548711]
[1664617470357,0.05423366,19339.0,19338.0,1.16718111]
[1664617470578,0.05423366,19339.0,19338.0,1.68429711]
[1664617470989,0.00323366,19339.0,19338.0,1.68429711]
[1664617471199,0.00323366,19339.0,19338.0,1.16718111]
[1664617471848,0.05100556,19339.0,19338.0,1.16718111]
[1664617472015,0.04100556,19339.0,19338.0,0.647837]
[1664617472976,0.258368,19340.0,19338.0,0.647837]
[1664617473849,0.313368,19340.0,19338.0,0.647837]
[1664617474341,0.358306,19339.0,19338.0,0.26]
[1664617474581,0.442634,19340.0,19338.0,0.26]
[1664617475046,0.387634,19340.0,19338.0,0.26]
[1664617475920,0.438634,19340.0,19338.0,0.26]
[1664617476990,0.387634,19340.0,19338.0,0.26]
[1664617477975,0.438634,19340.0,19338.0,0.26]
[1664617479126,0.387634,19340.0,19338.0,0.26]
[1664617479759,0.438634,19340.0,19338.0,0.26]
[1664617481067,0.387634,19340.0,19338.0,0.26]
[1664617481848,0.438634,19340.0,19338.0,0.26]
[1664617483036,0.387634,19340.0,19338.0,0.26]
[1664617483918,0.438634,19340.0,19338.0,0.26]
[1664617485477,0.387634,19340.0,19338.0,0.26]
[1664617485996,0.438634,19340.0,19338.0,0.26]
[1664617486580,0.309368,19340.0,19339.0,0.7330058]
[1664617486801,0.180184,19340.0,19339.0,0.3746998]
[1664617487056,0.129184,19340.0,19339.0,0.3746998]
[1664617487625,0.129184,19340.0,19339.0,0.7330058]
[1664617487849,0.181184,19340.0,19339.0,0.14108245]
[1664617488072,0.181184,19340.0,19339.0,0.7330058]
[1664617488296,0.181184,19340.0,19339.0,0.3746998]
[1664617489420,0.129184,19340.0,19339.0,0.3746998]
[1664617489910,0.185184,19340.0,19339.0,0.3746998]
[1664617491235,0.185184,19340.0,19339.0,0.38493142]
[1664617491476,0.82243689,19341.0,19339.0,0.13839755]
[1664617491693,0.82243689,19341.0,19339.0,0.51309735]
[1664617491934,0.056,19340.0,19339.0,0.13839755]
[1664617492435,0.056,19340.0,19339.0,0.51309735]
[1664617493782,0.82243689,19341.0,19339.0,0.51309735]
[1664617493994,0.056,19340.0,19339.0,0.13839755]
[1664617494199,0.056,19340.0,19339.0,0.51309735]
[1664617494436,0.414306,19340.0,19339.0,0.01023162]
[1664617494668,0.056,19340.0,19339.0,0.01023162]
[1664617495131,0.82243689,19341.0,19339.0,0.01023162]
[1664617496039,0.87443689,19341.0,19339.0,0.01023162]
[1664617497180,0.82243689,19341.0,19339.0,0.01023162]
[1664617498061,0.87443689,19341.0,19339.0,0.01023162]
[1664617498281,0.358306,19340.0,19339.0,0.01023162]
[1664617498518,0.358306,19340.0,19339.0,0.38493142]
[1664617498739,1.00369589,19341.0,19339.0,0.38493142]
[1664617498962,1.00369589,19341.0,19339.0,0.01023162]
[1664617499196,0.358306,19340.0,19339.0,0.01023162]
[1664617499417,1.00369589,19341.0,19339.0,0.01023162]
[1664617499632,0.95169589,19341.0,19339.0,0.01023162]
[1664617500168,1.00369589,19341.0,19339.0,0.01023162]
[1664617500993,0.358306,19340.0,19339.0,0.01023162]
[1664617501496,0.95169589,19341.0,19339.0,0.01023162]
[1664617501927,0.052,19340.0,19339.0,0.01023162]
[1664617502150,0.052,19340.0,19339.0,0.38493142]
[1664617502375,0.052,19340.0,19339.0,0.74323742]
[1664617502599,0.052,19340.0,19339.0,0.38493142]
[1664617502971,0.052,19340.0,19339.0,0.74323742]
[1664617503197,0.82243689,19341.0,19339.0,0.74323742]
[1664617503402,0.82243689,19341.0,19339.0,0.01023162]
[1664617503626,0.82243689,19341.0,19339.0,0.38493142]
[1664617504024,0.87443689,19341.0,19339.0,0.38493142]
[1664617505301,0.82243689,19341.0,19339.0,0.38493142]
[1664617505950,0.87443689,19341.0,19339.0,0.38493142]
[1664617506460,0.67443689,19341.0,19339.0,0.38493142]
[1664617507161,0.75160989,19341.0,19339.0,0.38493142]
[1664617507648,0.358306,19340.0,19339.0,0.38493142]
[1664617508078,0.80360989,19341.0,19339.0,0.38493142]
[1664617508318,0.80360989,19341.0,19340.0,0.358306]
[1664617508537,0.80360989,19341.0,19339.0,0.17720165]
[1664617508789,0.80360989,19341.0,19339.0,0.56484905]
[1664617509008,0.80360989,19341.0,19339.0,0.39787902]
[1664617509225,0.75160989,19341.0,19339.0,0.39787902]
[1664617509438,0.75160989,19341.0,19340.0,0.0191374]
[1664617509657,1.10991589,19341.0,19340.0,0.0191374]
[1664617510125,0.80360989,19341.0,19340.0,0.0191374]
[1664617511111,0.75160989,19341.0,19340.0,0.0191374]
[1664617512037,0.80360989,19341.0,19340.0,0.0191374]
[1664617513290,0.75160989,19341.0,19340.0,0.0191374]
[1664617514109,0.80360989,19341.0,19340.0,0.0191374]
[1664617515350,0.75160989,19341.0,19340.0,0.0191374]
[1664617516017,0.80360989,19341.0,19340.0,0.0191374]
[1664617517365,0.75160989,19341.0,19340.0,0.0191374]
[1664617517930,0.80960989,19341.0,19340.0,0.0191374]
[1664617518144,0.80960989,19341.0,19340.0,0.3938372]
[1664617518357,0.80960989,19341.0,19340.0,0.0191374]
[1664617519253,0.80960989,19341.0,19340.0,0.3938372]
[1664617519492,0.80960989,19341.0,19340.0,0.0191374]
[1664617519704,0.75160989,19341.0,19340.0,0.0191374]
[1664617519944,0.80960989,19341.0,19340.0,0.3938372]
[1664617520686,0.80960989,19341.0,19340.0,0.0191374]
[1664617520920,1.16791589,19341.0,19340.0,0.0191374]
[1664617521149,0.80960989,19341.0,19340.0,0.3938372]
[1664617521356,0.75160989,19341.0,19340.0,0.0191374]
[1664617521789,1.10991589,19341.0,19340.0,0.0191374]
[1664617522020,1.16791589,19341.0,19340.0,0.0191374]
[1664617522250,3.49734155,19341.0,19340.0,0.0191374]
[1664617523183,3.43934155,19341.0,19340.0,0.0191374]
[1664617523401,0.75160989,19341.0,19340.0,0.0191374]
[1664617523844,0.75488029,19341.0,19340.0,0.0191374]
[1664617524099,0.80688029,19341.0,19340.0,0.0191374]
[1664617525435,0.75488029,19341.0,19340.0,0.0191374]
[1664617526089,0.81288029,19341.0,19340.0,0.0191374]
[1664617527382,0.75488029,19341.0,19340.0,0.0191374]
[1664617528056,0.81288029,19341.0,19340.0,0.0191374]
[1664617529276,0.75488029,19341.0,19340.0,0.0191374]
[1664617530028,0.80688029,19341.0,19340.0,0.0191374]
[1664617530653,0.80360989,19341.0,19340.0,0.0191374]
[1664617531087,0.80360989,19341.0,19340.0,0.02936113]
[1664617531302,0.67443689,19341.0,19340.0,0.02936113]
[1664617531716,0.62243689,19341.0,19340.0,0.02936113]
[1664617531967,0.68043689,19341.0,19340.0,0.02936113]
[1664617532204,0.68043689,19341.0,19340.0,0.46027093]
[1664617532434,0.68043689,19341.0,19340.0,0.40406093]
[1664617532887,0.68043689,19341.0,19340.0,0.02936113]
[1664617533142,0.68043689,19341.0,19340.0,0.46027093]
[1664617533366,0.62243689,19341.0,19340.0,0.46027093]
[1664617533809,0.62243689,19341.0,19340.0,0.40406093]
[1664617534025,0.68043689,19341.0,19340.0,0.40406093]
[1664617535150,0.56409089,19341.0,19340.0,0.54082016]
[1664617535390,0.002,19344.0,19342.0,0.05]
[1664617535666,0.002,19344.0,19343.0,1.45272807]
[1664617535847,0.002,19344.0,19343.0,1.40827726]
[1664617536075,0.081,19344.0,19343.0,1.40827726]
[1664617536306,0.086,19344.0,19343.0,1.42741466]
[1664617536545,0.086,19344.0,19343.0,1.06910866]
[1664617537229,0.007,19344.0,19343.0,0.90872014]
[1664617537662,0.01658772,19344.0,19343.0,0.90872014]
[1664617538099,0.09558772,19344.0,19343.0,1.26702614]
[1664617538548,0.09558772,19344.0,19343.0,0.90872014]
[1664617538773,0.09558772,19344.0,19343.0,1.26702614]
[1664617538991,0.09558772,19344.0,19343.0,1.08151369]
[1664617539223,0.01658772,19344.0,19343.0,1.43981969]
[1664617539518,0.01658772,19344.0,19343.0,0.56978225]
[1664617539950,0.09558772,19344.0,19343.0,0.56978225]
[1664617540641,0.09558772,19344.0,19343.0,0.92808825]
[1664617541327,0.01658772,19344.0,19343.0,0.92808825]
[1664617542003,0.09558772,19344.0,19343.0,0.92808825]
[1664617542227,0.09558772,19344.0,19343.0,0.56978225]
[1664617542700,0.09558772,19344.0,19343.0,0.92808825]
[1664617543373,0.01658772,19344.0,19343.0,0.56978225]
[1664617543605,0.01658772,19344.0,19343.0,0.92808825]
[1664617544051,0.09558772,19344.0,19343.0,0.92808825]
[1664617544699,0.09558772,19344.0,19343.0,0.56978225]
[1664617544914,0.09558772,19344.0,19343.0,0.92808825]
[1664617545350,0.01658772,19344.0,19343.0,0.92808825]
[1664617546158,0.09558772,19344.0,19343.0,0.56978225]
[1664617546370,0.09558772,19344.0,19343.0,0.3969887]
[1664617546582,0.09558772,19344.0,19343.0,0.7552947]
[1664617547480,0.01658772,19344.0,19343.0,0.7552947]
[1664617548161,0.09558772,19344.0,19343.0,0.7552947]
[1664617548582,0.09558772,19344.0,19343.0,0.3969887]
[1664617548817,0.09558772,19344.0,19343.0,0.7552947]
[1664617549936,0.01658772,19344.0,19343.0,0.87691511]
[1664617550160,0.09558772,19344.0,19343.0,0.87691511]
[1664617551562,0.01658772,19344.0,19343.0,0.87691511]
[1664617552298,0.09558772,19344.0,19343.0,0.87691511]
[1664617553198,0.09558772,19344.0,19343.0,0.51860911]
[1664617553432,0.01658772,19344.0,19343.0,0.87691511]
[1664617553891,0.01658772,19344.0,19343.0,0.51860911]
[1664617554121,0.01658772,19344.0,19343.0,0.87691511]
[1664617554359,0.09558772,19344.0,19343.0,0.87691511]
[1664617555131,0.09558772,19344.0,19343.0,0.51860911]
[1664617555339,0.01658772,19344.0,19343.0,0.87691511]
[1664617555665,0.01658772,19344.0,19343.0,0.51860911]
[1664617555871,0.01658772,19344.0,19343.0,0.87691511]
[1664617556182,0.09558772,19344.0,19343.0,0.87691511]
[1664617557418,0.01658772,19344.0,19343.0,0.87691511]
[1664617557906,0.01658772,19344.0,19343.0,0.51860911]
[1664617558040,0.09558772,19344.0,19343.0,0.51860911]
[1664617558473,0.09558772,19344.0,19343.0,0.87691511]
[1664617559160,0.09558772,19344.0,19343.0,0.51860911]
[1664617559377,0.01658772,19344.0,19343.0,0.51860911]
[1664617559602,0.01658772,19344.0,19343.0,0.87691511]
[1664617560329,0.09558772,19344.0,19343.0,0.51860911]
[1664617560781,0.09558772,19344.0,19343.0,0.87691511]
[1664617561202,0.09558772,19344.0,19343.0,0.86264221]
[1664617561465,0.01658772,19344.0,19343.0,0.86264221]
[1664617562273,0.09558772,19344.0,19343.0,0.86264221]
[1664617562538,0.09558772,19344.0,19343.0,0.3827158]
[1664617562698,0.09558772,19344.0,19343.0,0.0048645]
[1664617562927,0.09558772,19344.0,19343.0,0.3827158]
[1664617563584,0.01658772,19344.0,19343.0,0.7410218]
[1664617563804,0.01658772,19344.0,19343.0,0.3827158]
[1664617564021,0.01658772,19344.0,19343.0,0.7410218]
[1664617564233,0.09558772,19344.0,19343.0,0.7410218]
[1664617565620,0.01658772,19344.0,19343.0,0.7410218]
[1664617565865,0.01658772,19344.0,19343.0,0.3827158]
[1664617566090,0.01658772,19344.0,19343.0,0.91291582]
[1664617566315,0.09558772,19344.0,19343.0,0.91291582]
[1664617567636,0.01658772,19344.0,19343.0,0.91291582]
[1664617568225,0.09558772,19344.0,19343.0,0.91291582]
[1664617568785,0.09558772,19344.0,19343.0,0.55460982]
[1664617569375,0.09558772,19344.0,19343.0,0.91291582]
[1664617569605,0.01658772,19344.0,19343.0,0.91291582]
[1664617570276,0.09558772,19344.0,19343.0,0.91291582]
[1664617571449,0.01658772,19344.0,19343.0,0.91291582]
[1664617572310,0.09558772,19344.0,19343.0,0.55460982]
[1664617572543,0.09558772,19344.0,19343.0,0.91291582]
[1664617573456,0.01658772,19344.0,19343.0,0.91291582]
[1664617573679,0.01658772,19344.0,19343.0,0.55460982]
[1664617573898,0.01658772,19344.0,19343.0,0.91291582]
[1664617574115,0.01658772,19344.0,19343.0,0.55460982]
[1664617574326,0.09558772,19344.0,19343.0,0.91291582]
[1664617575900,0.09558772,19344.0,19343.0,0.55460982]
[1664617576145,0.01658772,19344.0,19343.0,0.91291582]
[1664617576418,0.09558772,19344.0,19343.0,0.91291582]
[1664617578001,0.01658772,19344.0,19343.0,0.91291582]
[1664617578218,0.09558772,19344.0,19343.0,0.91291582]
[1664617578660,0.09558772,19344.0,19343.0,0.7410218]
[1664617578875,0.09558772,19344.0,19343.0,0.3827158]
[1664617579306,0.09558772,19344.0,19343.0,0.7410218]
[1664617579460,0.01658772,19344.0,19343.0,0.3827158]
[1664617579683,0.01658772,19344.0,19343.0,0.7410218]
[1664617579901,0.01658772,19344.0,19343.0,0.3827158]
[1664617580272,0.09558772,19344.0,19343.0,0.7410218]
[1664617580835,0.09558772,19344.0,19343.0,0.3827158]
[1664617581044,0.09558772,19344.0,19343.0,0.0048645]
[1664617581600,0.01658772,19344.0,19343.0,0.7410218]
[1664617581822,0.01658772,19344.0,19343.0,0.87208522]
[1664617582034,0.01658772,19344.0,19343.0,0.51377922]
[1664617582195,0.09558772,19344.0,19343.0,0.51377922]
[1664617582379,0.09558772,19344.0,19343.0,0.87208522]
[1664617582806,0.09558772,19344.0,19343.0,0.51377922]
[1664617583049,0.09558772,19344.0,19343.0,0.87208522]
[1664617583608,0.01658772,19344.0,19343.0,0.87208522]
[1664617583869,0.01658772,19344.0,19343.0,0.7410218]
[1664617584336,0.09558772,19344.0,19343.0,0.7410218]
[1664617584967,0.09558772,19344.0,19343.0,1.25275324]
[1664617585653,0.01658772,19344.0,19343.0,1.25275324]
[1664617586341,0.09558772,19344.0,19343.0,1.25275324]
[1664617587526,0.01658772,19344.0,19343.0,0.51659594]
[1664617587746,0.01658772,19344.0,19343.0,0.87490194]
[1664617588306,0.09558772,19344.0,19343.0,1.25275324]
[1664617588528,0.09558772,19344.0,19343.0,0.89444724]
[1664617589199,0.09558772,19344.0,19343.0,1.25275324]
[1664617589405,0.09558772,19344.0,19343.0,0.87490194]
[1664617589523,0.01658772,19344.0,19343.0,1.25275324]
[1664617589745,0.01658772,19344.0,19343.0,1.3090456]
[1664617590196,0.09558772,19344.0,19343.0,0.9507396]
[1664617590409,0.09558772,19344.0,19343.0,1.3090456]
[1664617591574,0.09558772,19344.0,19343.0,0.9507396]
[1664617591784,0.09558772,19344.0,19343.0,1.3090456]
[1664617592057,0.01658772,19344.0,19343.0,1.3090456]
[1664617592233,0.09558772,19344.0,19343.0,1.3090456]
[1664617592890,0.09558772,19344.0,19343.0,0.51659594]
[1664617593326,0.09558772,19344.0,19343.0,0.87490194]
[1664617593538,0.01658772,19344.0,19343.0,0.51659594]
[1664617593743,0.01658772,19344.0,19343.0,0.87490194]
[1664617593960,0.01658772,19344.0,19343.0,0.51659594]
[1664617594242,0.01658772,19344.0,19343.0,0.87490194]
[1664617594436,0.09558772,19344.0,19343.0,0.51659594]
[1664617594588,0.09558772,19344.0,19343.0,0.87490194]
[1664617595011,0.09558772,19344.0,19343.0,0.51659594]
[1664617595473,0.09558772,19344.0,19343.0,1.25275324]
[1664617595688,0.09558772,19344.0,19343.0,0.51659594]
[1664617595865,0.01658772,19344.0,19343.0,0.51659594]
[1664617596088,0.01658772,19344.0,19343.0,0.87490194]
[1664617596268,0.09558772,19344.0,19343.0,1.25275324]
[1664617596486,0.09558772,19344.0,19343.0,0.51659594]
[1664617597021,0.09558772,19344.0,19343.0,0.87490194]
[1664617597714,0.01658772,19344.0,19343.0,0.87490194]
[1664617598581,0.09558772,19344.0,19343.0,0.89444724]
[1664617598801,0.09558772,19344.0,19343.0,0.51659594]
[1664617599043,0.09558772,19344.0,19343.0,0.87490194]
[1664617599274,0.09558772,19344.0,19343.0,0.51659594]
[1664617599478,0.45389372,19344.0,19343.0,0.51659594]
[1664617599597,0.01658772,19344.0,19343.0,0.51659594]
[1664617599814,0.01658772,19344.0,19343.0,0.0048645]
[1664617600269,0.09558772,19344.0,19343.0,0.0048645]
[1664617601658,0.01658772,19344.0,19343.0,0.0048645]
[1664617602214,0.14582672,19344.0,19343.0,0.0048645]
[1664617602434,0.22482672,19344.0,19343.0,0.0048645]
[1664617604277,0.30382672,19344.0,19343.0,0.0048645]
[1664617605602,0.14582672,19344.0,19343.0,0.0048645]
[1664617606323,0.22482672,19344.0,19343.0,0.0048645]
[1664617607722,0.14582672,19344.0,19343.0,0.0048645]
[1664617608375,0.22482672,19344.0,19343.0,0.0048645]
[1664617609716,0.14582672,19344.0,19343.0,0.0048645]
[1664617610270,0.09558772,19344.0,19343.0,0.0048645]
[1664617611387,0.09558772,19344.0,19343.0,0.3631705]
[1664617611656,0.01658772,19344.0,19343.0,0.3631705]
[1664617612023,0.01658772,19344.0,19343.0,0.0048645]
[1664617612460,0.09558772,19344.0,19343.0,0.0048645]
[1664617613708,0.01658772,19344.0,19343.0,0.0048645]
[1664617614476,0.09558772,19344.0,19343.0,0.0048645]
[1664617614984,0.67633339,19344.0,19343.0,0.0048645]
[1664617615205,0.93481139,19344.0,19343.0,0.0048645]
[1664617615434,1.00026072,19344.0,19343.0,0.0048645]
[1664617615667,0.92126072,19344.0,19343.0,0.0048645]
[1664617616351,1.35856672,19344.0,19343.0,0.0048645]
[1664617616569,1.25853383,19344.0,19343.0,0.0048645]
[1664617617571,1.17953383,19344.0,19343.0,0.0048645]
[1664617618412,1.61683983,19344.0,19343.0,0.0048645]
[1664617618695,1.25853383,19344.0,19343.0,0.0048645]
[1664617618864,0.74157783,19344.0,19343.0,0.0048645]
[1664617619081,0.48330472,19344.0,19343.0,0.0048645]
[1664617619574,0.40430472,19344.0,19343.0,0.0048645]
[1664617619998,0.76261072,19344.0,19343.0,0.0048645]
[1664617620250,0.40430472,19344.0,19343.0,0.0048645]
[1664617620477,0.48330472,19344.0,19343.0,0.0048645]
[1664617621162,0.84161072,19344.0,19343.0,0.0048645]
[1664617621427,1.35856672,19344.0,19343.0,0.0048645]
[1664617621641,0.92126072,19344.0,19343.0,0.0048645]
[1664617622154,1.10995169,19344.0,19343.0,0.0048645]
[1664617622376,1.18895169,19344.0,19343.0,0.0048645]
[1664617622519,1.54725769,19344.0,19343.0,0.0048645]
[1664617622943,1.18895169,19344.0,19343.0,0.0048645]
[1664617623422,1.54725769,19344.0,19343.0,0.0048645]
[1664617623593,1.46825769,19344.0,19343.0,0.0048645]
[1664617623818,1.26028069,19344.0,19343.0,0.0048645]
[1664617624035,1.10995169,19344.0,19343.0,0.0048645]
[1664617624527,1.54725769,19344.0,19343.0,0.0048645]
[1664617624700,1.18895169,19344.0,19343.0,0.0048645]
[1664617625319,1.00026072,19344.0,19343.0,0.0048645]
[1664617625554,1.35856672,19344.0,19343.0,0.0048645]
[1664617625980,1.15058972,19344.0,19343.0,0.0048645]
[1664617626286,1.27956672,19344.0,19343.0,0.0048645]
[1664617626522,1.35856672,19344.0,19343.0,0.0048645]
[1664617626973,1.00026072,19344.0,19343.0,0.0048645]
[1664617627390,1.35856672,19344.0,19343.0,0.0048645]
[1664617627594,0.40430472,19344.0,19343.0,0.0048645]
[1664617628628,0.84161072,19344.0,19343.0,0.0048645]
[1664617628842,0.48330472,19344.0,19343.0,0.0048645]
[1664617629063,0.84161072,19344.0,19343.0,0.0048645]
[1664617629306,0.48330472,19344.0,19343.0,0.0048645]
[1664617629689,0.40430472,19344.0,19343.0,0.0048645]
[1664617630081,0.76261072,19344.0,19343.0,0.0048645]
[1664617630304,0.40430472,19344.0,19343.0,0.0048645]
[1664617630556,0.59299489,19344.0,19343.0,0.0048645]
[1664617630710,0.40430472,19344.0,19343.0,0.0048645]
[1664617631189,0.76261072,19344.0,19343.0,0.0048645]
[1664617631425,0.40430472,19344.0,19343.0,0.0048645]
[1664617631636,0.76261072,19344.0,19343.0,0.0048645]
[1664617632087,0.63363372,19344.0,19343.0,0.0048645]
[1664617632482,0.56230472,19344.0,19343.0,0.0048645]
[1664617632909,0.92061072,19344.0,19343.0,0.0048645]
[1664617633180,0.56230472,19344.0,19343.0,0.0048645]
[1664617633413,0.92061072,19344.0,19343.0,0.0048645]
[1664617633839,0.76261072,19344.0,19343.0,0.0048645]
[1664617634070,1.27956672,19344.0,19343.0,0.0048645]
[1664617634414,1.35856672,19344.0,19343.0,0.0048645]
[1664617635054,1.53268229,19344.0,19343.0,0.0048645]
[1664617635282,1.59098829,19344.0,19343.0,0.0048645]